[Event "EYCC O18-ch 2024"]
[Site "Prague"]
[Date "2024.08.28"]
[Round "6.6"]
[White "Sahakyan, Aleks"]
[Black "Hrbek, Stepan"]
[Result "1-0"]
[ECO "C70"]
[WhiteElo "2287"]
[BlackElo "2414"]
[Annotator "RC"]
[PlyCount "107"]
[EventDate "2024.08.19"]
[EventType "swiss"]
[EventCountry "CZE"]
[SourceTitle "playchess.com"]
[Source "ChessBase"]
[SourceQuality "1"]
[TimeControl "5400+30"]

1. e4 {[%emt 0:00:02]} e5 {[%emt 0:00:14]} 2. Nf3 {[%emt 0:00:05]} Nc6 {[%emt 0:00:10]} 3. Bb5 {[%emt 0:00:04]} a6 {[%emt 0:00:25]} 4. Ba4 {[%emt 0:00:06]} Nge7 {[%emt 0:00:12]} 5. Nc3 {[%emt 0:00:43]} Ng6 {[%emt 0:00:15]} 6. h4 {[%emt 0:00:40]} h5 {[%emt 0:00:15]} 7. d4 {[%emt 0:03:44]} exd4 {[%emt 0:15:09]} 8. Nxd4 {[%emt 0:02:50]} Nxd4 {[%emt 0:00:29]} 9. Qxd4 {[%emt 0:00:09]} b5 {[%emt 0:01:26]} 10. Bb3 {[%emt 0:00:47]} Bb7 {[%emt 0:00:16]} 11. Qd3 {[%emt 0:07:16]} Nxh4 {[%emt 0:19:41]} 12. Qh3 {[%emt 0:08:48]} Ng6 {[%emt 0:11:18]} 13. Be3 {[%emt 0:08:16]} Bb4 {[%emt 0:06:21]} 14. O-O-O {[%emt 0:08:02]} Qe7 {[%emt 0:02:33]} 15. Nd5 {[%emt 0:03:12]} Bxd5 {[%emt 0:00:14]} 16. Rxd5 {[%emt 0:00:56]} O-O-O {[%emt 0:02:22]} 17. Rhd1 {[%emt 0:04:30]} Ne5 {[%emt 0:08:52]} 18. a3 {[%emt 0:09:20]} Ba5 {[%emt 0:03:02]} 19. Qf5 {[%emt 0:06:59]} f6 {[%emt 0:02:14]} 20. Bc5 {[%emt 0:02:00]} g6 {[%emt 0:07:16]} 21. Bxe7 {[%emt 0:00:56]} gxf5 {[%emt 0:00:01]} 22. Bxf6 {[%emt 0:00:46]} Ng4 {[%emt 0:00:23]} 23. Bxh8 {[%emt 0:00:42]} Rxh8 {[%emt 0:00:02]} 24. Rxf5 {[%emt 0:00:40]} Bb6 {[%emt 0:00:12]} 25. Rd2 {[%emt 0:02:03]} d6 {[%emt 0:00:30]} 26. f3 {[%emt 0:01:24]} Ne3 {[%emt 0:00:31]} 27. Rf7 {[%emt 0:00:59]} h4 {[%emt 0:02:53]} 28. Rg7 {[%emt 0:01:18]} Rh5 {[%emt 0:00:06]} 29. Be6+ {[%emt 0:01:09]} Kd8 {[%emt 0:01:30]} 30. Re2 {[%emt 0:01:41]} Nf1 {[%emt 0:00:58]} 31. Bg4 {[%emt 0:00:57]} Ng3 {[%emt 0:02:40]} 32. Re1 {[%emt 0:01:30]} Re5 {[%emt 0:00:52]} 33. Rh7 {[%emt 0:00:42]} Bf2 {[%emt 0:00:20]} 34. Rd1 {[%emt 0:00:05]} Re7 {[%emt 0:01:21]} 35. Rxh4 {[%emt 0:01:27]} Ne2+ {[%emt 0:00:18]} 36. Kd2 {[%emt 0:00:05]} Bxh4 {[%emt 0:00:07]} 37. Kxe2 {[%emt 0:01:01]} Bg3 {[%emt 0:02:31]} 38. Rh1 {[%emt 0:01:05]} c6 {[%emt 0:01:09]} 39. Ke3 {[%emt 0:02:36]} d5 {[%emt 0:02:02]} 40. Rh6 {[%emt 0:01:57]} dxe4 {[%emt 0:00:56]} 41. Rxc6 {[%emt 0:00:37]} exf3+ {[%emt 0:00:54]} 42. Kxf3 {[%emt 0:00:05]} Bc7 {[%emt 0:00:21]} 43. Rxa6 {[%emt 0:00:07]} Re1 {[%emt 0:00:03]} 44. Rg6 {[%emt 0:02:04]} Rc1 {[%emt 0:02:05]} 45. Bf5 {[%emt 0:01:17]} Rf1+ {[%emt 0:02:25]} 46. Kg4 {[%emt 0:00:02]} Rf2 47. Rg8+ {[%emt 0:01:44]} Ke7 {[%emt 0:00:52]} 48. Rg7+ {[%emt 0:00:11]} Kd6 {[%emt 0:00:01]} 49. g3 {[%emt 0:00:34]} Kc6 {[%emt 0:03:41]} 50. Be4+ {[%emt 0:01:05]} Kb6 {[%emt 0:00:26]} 51. Rg6+ {[%emt 0:00:20]} Ka7 {[%emt 0:00:01]} 52. Rg5 {[%emt 0:00:11]} Rf1 {[%emt 0:01:15]} 53. Rxb5 {[%emt 0:00:25]} Rg1 {[%emt 0:00:02]} 54. Rb7+ {[%emt 0:00:07]} 1-0

[Event "EYCC O18-ch 2024"]
[Site "Prague"]
[Date "2024.08.28"]
[Round "6.6"]
[White "Engin, Onur Cinar"]
[Black "Babula, Vlastimil"]
[Result "1-0"]
[ECO "B22"]
[WhiteElo "2215"]
[BlackElo "2503"]
[Annotator "RC"]
[PlyCount "157"]
[EventDate "2024.08.19"]
[EventType "swiss"]
[EventCountry "CZE"]
[SourceTitle "playchess.com"]
[Source "ChessBase"]
[SourceQuality "1"]
[TimeControl "5400+30"]

1. e4 {[%emt 0:00:04]} c5 {[%emt 0:00:05]} 2. c3 {[%emt 0:00:06]} d5 {[%emt 0:00:03]} 3. exd5 {[%emt 0:00:14]} Qxd5 {[%emt 0:00:05]} 4. d4 {[%emt 0:00:06]} g6 {[%emt 0:00:02]} 5. Nf3 {[%emt 0:00:32]} Bg7 {[%emt 0:00:06]} 6. Na3 {[%emt 0:00:36]} cxd4 {[%emt 0:00:22]} 7. Nb5 {[%emt 0:00:39]} Na6 {[%emt 0:00:36]} 8. Nbxd4 {[%emt 0:00:10]} Nf6 {[%emt 0:02:28]} 9. Bb5+ {[%emt 0:00:14]} Bd7 {[%emt 0:01:46]} 10. Bxa6 {[%emt 0:00:27]} bxa6 {[%emt 0:00:10]} 11. O-O {[%emt 0:00:13]} O-O {[%emt 0:02:16]} 12. Re1 {[%emt 0:00:12]} e6 {[%emt 0:11:47]} 13. Ne5 {[%emt 0:01:17]} Rfd8 {[%emt 0:00:17]} 14. c4 {[%emt 0:04:13]} Qb7 {[%emt 0:01:12]} 15. Qb3 {[%emt 0:12:00]} Qc7 {[%emt 0:07:53]} 16. Qf3 {[%emt 0:03:08]} Be8 {[%emt 0:25:23]} 17. Bg5 {[%emt 0:05:45]} Nh5 {[%emt 0:01:30]} 18. Bxd8 {[%emt 0:19:30]} Rxd8 {[%emt 0:00:16]} 19. Ndc6 {[%emt 0:02:10]} Rc8 {[%emt 0:01:51]} 20. g4 {[%emt 0:01:11]} Bxc6 {[%emt 0:00:36]} 21. Qxc6 {[%emt 0:06:40]} Qxc6 {[%emt 0:00:25]} 22. Nxc6 {[%emt 0:00:04]} Rxc6 {[%emt 0:00:05]} 23. gxh5 {[%emt 0:00:03]} Rxc4 {[%emt 0:00:07]} 24. hxg6 {[%emt 0:02:35]} hxg6 {[%emt 0:00:03]} 25. Re2 {[%emt 0:01:17]} Bd4 {[%emt 0:03:13]} 26. Rd1 {[%emt 0:03:38]} e5 {[%emt 0:05:44]} 27. b3 {[%emt 0:03:52]} Rc6 {[%emt 0:04:45]} 28. Kg2 {[%emt 0:05:43]} Kg7 {[%emt 0:01:33]} 29. f4 {[%emt 0:01:44]} f6 {[%emt 0:01:23]} 30. fxe5 {[%emt 0:01:58]} fxe5 {[%emt 0:00:06]} 31. Kf3 {[%emt 0:00:15]} a5 {[%emt 0:00:27]} 32. Ke4 {[%emt 0:04:07]} a4 {[%emt 0:02:02]} 33. b4 {[%emt 0:02:22]} a3 {[%emt 0:08:35]} 34. Kd5 {[%emt 0:04:30]} Rc3 {[%emt 0:01:16]} 35. Rb1 {[%emt 0:06:27]} Kh6 {[%emt 0:04:41]} 36. Rg2 {[%emt 0:02:11]} g5 {[%emt 0:01:23]} 37. Rf1 {[%emt 0:00:33]} a5 {[%emt 0:01:32]} 38. bxa5 {[%emt 0:00:37]} Rc5+ {[%emt 0:00:01]} 39. Ke4 {[%emt 0:00:15]} Rxa5 {[%emt 0:01:32]} 40. Rf6+ {[%emt 0:00:20]} Kg7 {[%emt 0:01:01]} 41. Rf5 {[%emt 0:00:04]} Ra4 {[%emt 0:00:46]} 42. Rgxg5+ {[%emt 0:00:37]} Kh6 {[%emt 0:00:21]} 43. Rh5+ {[%emt 0:00:12]} Kg6 {[%emt 0:00:08]} 44. Rfg5+ {[%emt 0:01:20]} Kf6 {[%emt 0:00:02]} 45. Rg4 {[%emt 0:01:16]} Be3+ {[%emt 0:01:14]} 46. Kf3 {[%emt 0:00:09]} Bf4 {[%emt 0:00:01]} 47. Rh8 {[%emt 0:01:11]} Rc4 {[%emt 0:04:30]} 48. Rg2 {[%emt 0:00:28]} Rc3+ {[%emt 0:00:22]} 49. Kg4 {[%emt 0:01:02]} Rc4 {[%emt 0:01:31]} 50. h4 {[%emt 0:00:22]} Bc1+ {[%emt 0:01:03]} 51. Kh5 {[%emt 0:00:44]} e4 {[%emt 0:00:05]} 52. Rf8+ {[%emt 0:00:58]} Ke5 {[%emt 0:00:01]} 53. Re8+ {[%emt 0:03:19]} Kd4 {[%emt 0:00:01]} 54. Kg4 {[%emt 0:01:16]} Rc7 {[%emt 0:02:04]} 55. Re2 {[%emt 0:00:48]} e3 {[%emt 0:00:50]} 56. Rd8+ {[%emt 0:00:03]} Ke4 {[%emt 0:00:02]} 57. Re8+ {[%emt 0:00:59]} Kd3 {[%emt 0:00:09]} 58. Rh2 {[%emt 0:00:30]} Rg7+ {[%emt 0:02:52]} 59. Kf3 {[%emt 0:00:07]} Rf7+ {[%emt 0:00:03]} 60. Kg3 {[%emt 0:00:28]} Rg7+ {[%emt 0:00:31]} 61. Kf3 {[%emt 0:00:08]} Rf7+ {[%emt 0:00:11]} 62. Kg3 {[%emt 0:00:05]} Rg7+ {[%emt 0:02:44]} 63. Kh3 {[%emt 0:01:27]} Bb2 {[%emt 0:00:05]} 64. Rg2 {[%emt 0:00:33]} Rd7 {[%emt 0:00:56]} 65. h5 {[%emt 0:01:26]} Rh7 {[%emt 0:01:21]} 66. Rg5 {[%emt 0:00:22]} e2 {[%emt 0:00:35]} 67. Rd5+ {[%emt 0:00:48]} Kc2 {[%emt 0:01:56]} 68. Rxe2+ {[%emt 0:00:11]} Kb1 {[%emt 0:00:01]} 69. Kg4 {[%emt 0:01:16]} Kxa2 {[%emt 0:00:02]} 70. Ra5 {[%emt 0:00:27]} Rg7+ {[%emt 0:01:15]} 71. Kf4 {[%emt 0:00:07]} Rg1 {[%emt 0:00:21]} 72. h6 {[%emt 0:00:50]} Rh1 {[%emt 0:00:05]} 73. Kg5 {[%emt 0:00:15]} Kb1 {[%emt 0:00:10]} 74. Rb5 {[%emt 0:00:23]} Kc1 {[%emt 0:00:01]} 75. Re6 {[%emt 0:01:09]} a2 {[%emt 0:00:48]} 76. Rc6+ {[%emt 0:00:03]} Kd1 {[%emt 0:00:03]} 77. Ra6 {[%emt 0:00:56]} a1=Q {[%emt 0:00:29]} 78. Rxa1+ {[%emt 0:00:08]} Bxa1 {[%emt 0:00:03]} 79. Rb1+ {[%emt 0:00:07]} 1-0

[Event "EYCC O18-ch 2024"]
[Site "Prague"]
[Date "2024.08.28"]
[Round "6.7"]
[White "Elmi, Saad Abobaker"]
[Black "Smolik, Jachym"]
[Result "1-0"]
[ECO "E04"]
[WhiteElo "2383"]
[BlackElo "2290"]
[Annotator "RC"]
[PlyCount "39"]
[EventDate "2024.08.19"]
[EventType "swiss"]
[EventCountry "CZE"]
[SourceTitle "playchess.com"]
[Source "ChessBase"]
[SourceQuality "1"]
[TimeControl "5400+30"]

1. d4 {[%emt 0:00:03]} d5 {[%emt 0:00:21]} 2. c4 {[%emt 0:00:52]} e6 {[%emt 0:00:05]} 3. Nf3 {[%emt 0:00:09]} Nf6 {[%emt 0:00:07]} 4. g3 {[%emt 0:00:12]} dxc4 {[%emt 0:00:26]} 5. Bg2 {[%emt 0:00:18]} c6 {[%emt 0:00:08]} 6. a4 {[%emt 0:02:02]} c5 {[%emt 0:01:19]} 7. O-O {[%emt 0:01:42]} Nc6 {[%emt 0:01:16]} 8. dxc5 {[%emt 0:02:19]} Qxd1 {[%emt 0:00:43]} 9. Rxd1 {[%emt 0:00:05]} Bxc5 {[%emt 0:05:48]} 10. Nbd2 {[%emt 0:01:34]} Ke7 {[%emt 0:15:47]} 11. Nxc4 {[%emt 0:00:58]} Nd5 {[%emt 0:09:02]} 12. Nce5 {[%emt 0:07:01]} Ncb4 {[%emt 0:14:15]} 13. Bd2 {[%emt 0:01:09]} f6 {[%emt 0:16:33]} 14. Rac1 {[%emt 0:01:06]} b6 {[%emt 0:06:33]} 15. e4 {[%emt 0:05:03]} fxe5 {[%emt 0:00:25]} 16. exd5 {[%emt 0:00:12]} Nxd5 {[%emt 0:05:43]} 17. Nxe5 {[%emt 0:01:03]} a5 {[%emt 0:02:13]} 18. Bg5+ {[%emt 0:07:40]} Ke8 {[%emt 0:00:56]} 19. Nd3 {[%emt 0:02:06]} Be7 {[%emt 0:00:42]} 20. Bxd5 {[%emt 0:00:28]} 1-0

[Event "EYCC O18-ch 2024"]
[Site "Prague"]
[Date "2024.08.28"]
[Round "6.7"]
[White "Taranowicz, Michal"]
[Black "Ribera Veganzones, Serni"]
[Result "0-1"]
[ECO "C11"]
[WhiteElo "2164"]
[BlackElo "2309"]
[Annotator "RC"]
[PlyCount "140"]
[EventDate "2024.08.19"]
[EventType "swiss"]
[EventCountry "CZE"]
[SourceTitle "playchess.com"]
[Source "ChessBase"]
[SourceQuality "1"]
[TimeControl "5400+30"]

1. e4 e6 2. Nc3 d5 3. Nf3 Nf6 4. e5 Nfd7 5. Ne2 c5 6. c3 d4 7. cxd4 cxd4 8. Nexd4 Nxe5 9. Bb5+ Nec6 10. O-O Bd7 11. Ne2 Nb4 12. Bc4 Bc6 13. Ne5 Bd5 14. b3 N8c6 15. Bb2 Nxe5 16. Bxe5 Nc6 17. Bb2 Be7 18. d3 Bf6 19. Bxf6 Qxf6 20. Bxd5 exd5 21. Qd2 O-O 22. Nf4 Qg5 23. g3 Nd4 24. Kg2 Qg4 25. Qd1 Qf5 26. Rc1 Rac8 27. h4 g6 28. Qd2 Qg4 29. f3 Qd7 30. Qa5 Nf5 31. Kh2 Ne3 32. Rfe1 d4 33. Qe5 Rfe8 34. Qf6 h6 35. h5 g5 36. Qxh6 gxf4 37. gxf4 Rxc1 38. Rxc1 Qg4 39. Qg5+ Qxg5 40. fxg5 Nd5 41. Rc4 Re5 42. Kg3 Rxg5+ 43. Kh4 Re5 44. Rxd4 Nf6 45. a4 Rxh5+ 46. Kg3 Rd5 47. Rb4 b6 48. d4 Kf8 49. Rc4 Ke7 50. Kf4 Ke6 51. Ke3 Rd7 52. Rc8 Rc7 53. Ra8 Nd5+ 54. Ke4 f5+ 55. Kd3 a5 56. Re8+ Re7 57. Rb8 Kd6 58. Rd8+ Kc6 59. Kc4 Ne3+ 60. Kd3 f4 61. Rc8+ Kb7 62. Rf8 Nd5 63. Kc4 Rd7 64. Kb5 Nc7+ 65. Kc4 Rxd4+ 66. Kxd4 Ne6+ 67. Ke5 Nxf8 68. Kxf4 Kc6 69. Ke5 Ng6+ 70. Ke4 Kc5 0-1

[Event "EYCC O18-ch 2024"]
[Site "Prague"]
[Date "2024.08.28"]
[Round "6.8"]
[White "Hak, David"]
[Black "Malek, Jan"]
[Result "0-1"]
[ECO "E10"]
[WhiteElo "2239"]
[BlackElo "2482"]
[Annotator "RC"]
[PlyCount "110"]
[EventDate "2024.08.19"]
[EventType "swiss"]
[EventCountry "CZE"]
[SourceTitle "playchess.com"]
[Source "ChessBase"]
[SourceQuality "1"]
[TimeControl "5400+30"]

1. d4 {[%emt 0:00:01]} Nf6 {[%emt 0:00:04]} 2. c4 {[%emt 0:00:06]} e6 {[%emt 0:00:03]} 3. Nf3 {[%emt 0:00:17]} h6 {[%emt 0:00:05]} 4. Nc3 {[%emt 0:01:53]} Bb4 {[%emt 0:00:09]} 5. Qb3 {[%emt 0:04:47]} c5 {[%emt 0:00:08]} 6. e3 {[%emt 0:06:02]} Nc6 {[%emt 0:06:44]} 7. a3 {[%emt 0:12:16]} Qa5 {[%emt 0:13:13]} 8. Bd2 {[%emt 0:01:36]} cxd4 {[%emt 0:00:11]} 9. exd4 {[%emt 0:00:48]} b6 {[%emt 0:04:13]} 10. d5 {[%emt 0:19:56]} exd5 {[%emt 0:00:31]} 11. O-O-O {[%emt 0:08:03]} Bxc3 {[%emt 0:18:57]} 12. Bxc3 {[%emt 0:00:07]} Qc5 {[%emt 0:00:05]} 13. cxd5 {[%emt 0:00:35]} Ne7 {[%emt 0:14:16]} 14. d6 {[%emt 0:10:01]} Ned5 {[%emt 0:01:22]} 15. Bc4 {[%emt 0:01:42]} Nxc3 {[%emt 0:00:07]} 16. Bxf7+ {[%emt 0:11:13]} Kf8 {[%emt 0:00:21]} 17. bxc3 {[%emt 0:00:35]} Bb7 {[%emt 0:00:41]} 18. Rhe1 {[%emt 0:01:23]} Bxf3 {[%emt 0:11:18]} 19. gxf3 {[%emt 0:00:05]} Rc8 {[%emt 0:00:06]} 20. Re3 {[%emt 0:00:17]} Qf5 {[%emt 0:00:07]} 21. h4 {[%emt 0:07:59]} Rh7 {[%emt 0:03:56]} 22. Bc4 {[%emt 0:07:40]} g6 {[%emt 0:00:56]} 23. Bd3 {[%emt 0:00:10]} Qh5 {[%emt 0:00:06]} 24. Rg1 {[%emt 0:01:37]} Rg7 {[%emt 0:01:05]} 25. f4 {[%emt 0:01:40]} Qxh4 {[%emt 0:06:56]} 26. Rxg6 {[%emt 0:00:36]} Qxf4 {[%emt 0:00:07]} 27. Kb1 {[%emt 0:01:29]} Re8 {[%emt 0:02:50]} 28. Rxg7 {[%emt 0:01:00]} Kxg7 {[%emt 0:00:12]} 29. Rxe8 {[%emt 0:00:18]} Nxe8 {[%emt 0:00:06]} 30. Qb5 {[%emt 0:00:42]} Qxd6 {[%emt 0:00:49]} 31. Qf5 {[%emt 0:00:01]} Qe6 {[%emt 0:01:31]} 32. Qh7+ {[%emt 0:00:28]} Kf8 {[%emt 0:00:06]} 33. Kb2 {[%emt 0:00:57]} Nd6 {[%emt 0:00:26]} 34. f4 {[%emt 0:00:28]} Ke8 {[%emt 0:04:23]} 35. f5 {[%emt 0:00:07]} Qf6 {[%emt 0:00:07]} 36. Qg8+ {[%emt 0:00:27]} Ke7 {[%emt 0:00:02]} 37. Qa8 {[%emt 0:00:34]} a5 {[%emt 0:01:43]} 38. Qf3 {[%emt 0:00:25]} Qe5 {[%emt 0:01:30]} 39. Qh5 {[%emt 0:00:37]} Qf4 {[%emt 0:01:01]} 40. Qg6 {[%emt 0:00:49]} Qg5 {[%emt 0:01:03]} 41. Qh7+ {[%emt 0:00:09]} Nf7 {[%emt 0:00:08]} 42. a4 {[%emt 0:00:59]} Kf6 {[%emt 0:00:24]} 43. Kb3 {[%emt 0:00:18]} Qg7 {[%emt 0:00:44]} 44. Qxg7+ {[%emt 0:00:38]} Kxg7 {[%emt 0:00:02]} 45. c4 {[%emt 0:00:33]} Kf6 {[%emt 0:00:25]} 46. Be2 {[%emt 0:00:28]} Nd6 {[%emt 0:01:08]} 47. Kc3 {[%emt 0:00:11]} Ke5 {[%emt 0:00:25]} 48. Bf1 {[%emt 0:00:55]} Ne4+ {[%emt 0:00:25]} 49. Kd3 {[%emt 0:00:03]} Nc5+ {[%emt 0:00:10]} 50. Ke3 {[%emt 0:00:10]} Nxa4 {[%emt 0:00:06]} 51. Bh3 Nc5 {[%emt 0:00:08]} 52. f6 {[%emt 0:00:36]} Kxf6 {[%emt 0:00:05]} 53. Kd4 {[%emt 0:00:04]} h5 {[%emt 0:00:15]} 54. Kd5 {[%emt 0:00:07]} h4 {[%emt 0:00:13]} 55. Kd6 {[%emt 0:00:04]} a4 {[%emt 0:00:04]} 0-1

[Event "EYCC O18-ch 2024"]
[Site "Prague"]
[Date "2024.08.28"]
[Round "6.8"]
[White "Afonso, Joao Pedro"]
[Black "Farokhi, Keyvan"]
[Result "0-1"]
[ECO "B50"]
[WhiteElo "1935"]
[BlackElo "2307"]
[Annotator "RC"]
[PlyCount "66"]
[EventDate "2024.08.19"]
[EventType "swiss"]
[EventCountry "CZE"]
[SourceTitle "playchess.com"]
[Source "ChessBase"]
[SourceQuality "1"]
[TimeControl "5400+30"]

1. e4 {[%emt 0:00:03]} c5 {[%emt 0:00:10]} 2. Nf3 {[%emt 0:00:07]} d6 {[%emt 0:00:05]} 3. c3 {[%emt 0:00:10]} Nf6 {[%emt 0:00:59]} 4. h3 {[%emt 0:00:04]} Nc6 {[%emt 0:01:15]} 5. Bd3 {[%emt 0:00:05]} e5 {[%emt 0:03:06]} 6. Bc2 {[%emt 0:02:17]} d5 {[%emt 0:00:20]} 7. exd5 {[%emt 0:01:54]} Qxd5 {[%emt 0:01:24]} 8. d3 {[%emt 0:04:11]} Bf5 {[%emt 0:00:29]} 9. Nh4 {[%emt 0:02:17]} Be6 {[%emt 0:03:05]} 10. Qe2 {[%emt 0:20:35]} O-O-O {[%emt 0:03:00]} 11. Be3 {[%emt 0:09:09]} h6 {[%emt 0:04:48]} 12. Nd2 {[%emt 0:04:00]} g5 {[%emt 0:13:45]} 13. Ne4 {[%emt 0:22:14]} Be7 {[%emt 0:12:11]} 14. Nf3 {[%emt 0:02:32]} Nh5 {[%emt 0:18:28]} 15. g3 {[%emt 0:21:42]} f5 {[%emt 0:08:51]} 16. Bb3 {[%emt 0:01:41]} Qd7 {[%emt 0:00:03]} 17. Nxc5 {[%emt 0:03:55]} Bxc5 {[%emt 0:00:06]} 18. Bxc5 {[%emt 0:00:30]} Bxb3 {[%emt 0:01:10]} 19. axb3 {[%emt 0:00:02]} b6 {[%emt 0:00:07]} 20. Be3 {[%emt 0:01:14]} f4 {[%emt 0:01:14]} 21. Bd2 {[%emt 0:01:12]} fxg3 {[%emt 0:00:31]} 22. O-O-O {[%emt 0:00:44]} Qxd3 {[%emt 0:03:03]} 23. Qxd3 {[%emt 0:00:05]} Rxd3 {[%emt 0:00:11]} 24. Ne1 {[%emt 0:00:01]} Rd7 {[%emt 0:01:15]} 25. Be3 {[%emt 0:00:05]} Rf8 {[%emt 0:03:41]} 26. fxg3 {[%emt 0:00:28]} Nxg3 {[%emt 0:00:06]} 27. Rh2 {[%emt 0:00:20]} Rf1 {[%emt 0:06:56]} 28. h4 {[%emt 0:01:02]} Nf5 {[%emt 0:01:02]} 29. Rxd7 {[%emt 0:01:45]} Kxd7 {[%emt 0:00:17]} 30. Bf2 {[%emt 0:00:34]} g4 {[%emt 0:00:49]} 31. Rg2 {[%emt 0:00:16]} g3 {[%emt 0:00:22]} 32. Bxg3 {[%emt 0:00:13]} Nxg3 {[%emt 0:00:07]} 33. Kd2 {[%emt 0:00:41]} Nf5 {[%emt 0:00:39]} 0-1

[Event "EYCC O18-ch 2024"]
[Site "Prague"]
[Date "2024.08.28"]
[Round "6.9"]
[White "Razafindratsima, Timothe"]
[Black "Hercegovac, Neven"]
[Result "1-0"]
[ECO "B35"]
[WhiteElo "2457"]
[BlackElo "2278"]
[Annotator "TA"]
[PlyCount "71"]
[EventDate "2024.08.19"]
[EventType "swiss"]
[EventCountry "CZE"]
[SourceTitle "playchess.com"]
[Source "ChessBase"]
[SourceQuality "1"]
[TimeControl "5400+30"]

{[%evp 22,71,20,14,16,25,29,17,20,0,2,0,13,0,15,34,74,62,62,27,15,0,0,0,8,18,7,16,61,56,480,483,535,533,695,683,728,629,1963,2404,2417,2168,1589,927,1964,1906,1311,849,29990,29991,29991,29992]} 1. e4 {[%emt 0:00:02]} c5 {[%emt 0:00:11]} 2. Nf3 {[%emt 0:00:14]} Nc6 {[%emt 0:00:06]} 3. Nc3 {[%emt 0:00:13]} g6 {[%emt 0:00:11]} 4. d4 {[%emt 0:00:16]} cxd4 {[%emt 0:00:05]} 5. Nxd4 {[%emt 0:00:04]} Bg7 {[%emt 0:00:16]} 6. Be3 {[%emt 0:00:28]} Nf6 {[%emt 0:00:10]} 7. Bc4 {[%emt 0:00:31]} O-O {[%emt 0:00:07]} 8. Bb3 {[%emt 0:00:26]} d6 {[%emt 0:00:05]} 9. f3 {[%emt 0:01:02]} Qa5 {[%emt 0:00:17]} 10. Qd2 {[%emt 0:01:32]} Nxd4 {[%emt 0:00:15]} 11. Bxd4 {[%emt 0:00:02]} Be6 {[%emt 0:00:06]} 12. O-O {[%emt 0:03:48]} Nd7 {[%emt 0:02:51]} 13. Bxg7 {[%emt 0:02:14]} Kxg7 {[%emt 0:00:02]} 14. Kh1 {[%emt 0:00:06]} Rac8 {[%emt 0:03:13] The position is equal.} 15. f4 {[%emt 0:10:27][%cal Bf3f4,Bf4f5][%mdl 32]} Rfd8 {[%emt 0:33:52]} 16. Rf3 {[%emt 0:30:16]} Bxb3 {[%emt 0:04:21]} 17. cxb3 {[%emt 0:00:01]} Nf6 {[%emt 0:08:29]} 18. Raf1 {[%emt 0:01:10]} b5 {[%emt 0:11:21][%cal Bb7b5,Bb5b4][%mdl 32]} 19. f5 {[%emt 0:16:34]} Rf8 {[%emt 0:11:26]} 20. Rh3 {[%emt 0:11:08] [#] Threatening mate with Qh6+.} h5 {[%emt 0:02:08]} 21. a3 {[%emt 0:00:20]} b4 $1 {[%emt 0:03:36]} 22. Nd5 {[%emt 0:00:01]} Nxe4 {[%emt 0:00:58]} 23. Qd4+ {[%emt 0:04:20]} (23. Qxb4 $2 Nf2+ (23... Qxd5 $2 24. Qe1 $19) 24. Kg1 Nxh3+ (24... Qxd5 $2 25. Rxf2 Rc1+ 26. Rf1 $19) 25. gxh3 Qxd5 $19) 23... Nf6 $132 {[%emt 0:00:02][%mdl 2048] Black puts up resistance} 24. Nxe7 {[%emt 0:00:18]} (24. Nxb4 Qc5 (24... gxf5 25. Rxh5 Rh8 26. Rg5+ Kf8 27. Rgxf5 $16) 25. Qd2 e6 (25... gxf5 26. Qg5+ Kh7 27. Nd3 $16) 26. fxe6 fxe6 $15) 24... Qc5 {[%emt 0:03:39]} 25. fxg6 {[%emt 0:03:12] White is much more active.} (25. Qxb4 Qxb4 26. axb4 Rc7 $19) 25... fxg6 $2 {[%emt 0:00:05][%mdl 8192] [#] A mistake that costs the game.} ({Better is} 25... Qxd4 $14 26. Nf5+ Kxg6 27. Nxd4 bxa3 28. bxa3 Ne4) 26. Qd3 $18 {[%emt 0:00:34]} (26. Qxb4 Ng4 27. Rhf3 Qe5 28. g3 Rxf3 (28... Qxe7 $2 29. Qd4+ Kh6 30. Rxf8 $19) (28... Qxe7 $2 29. Qd4+ Kh6 30. Rxf8 $19)) 26... Ne4 {[%emt 0:01:15]} 27. Rhf3 {[%emt 0:00:03][%cal Bh3f3,Bf3f7,Bf7e7,Be7e6][%mdl 32] Repels Nf2+} (27. Rxf8 {leads to mate.} Rxf8) 27... d5 {[%emt 0:08:59]} 28. Nxc8 {[%emt 0:00:08]} Rxc8 {[%emt 0:01:13]} 29. axb4 {[%emt 0:00:24]} Qd6 {[%emt 0:02:13]} 30. Rf7+ {[%emt 0:01:04]} Kh6 {[%emt 0:01:11]} 31. Qe3+ {[%emt 0:00:07]} g5 {[%emt 0:00:10]} 32. Qd4 {[%emt 0:02:22]} Qg6 {[%emt 0:00:21] Dodges Qg7+} 33. Qxd5 {[%emt 0:00:27]} h4 {[%emt 0:00:26]} 34. Re7 {[%emt 0:03:17]} Qf6 {[%emt 0:00:04]} 35. Re6 {[%emt 0:00:44]} Nf2+ {[%emt 0:00:35]} 36. Kg1 $1 {[%emt 0:00:06] Weighted Error Value: White=0.24 (precise) /Black=0.64.  Loses game:     	---       	Black=1      Inaccurate:     	White=1     	Black=3      OK:         	White=7     	Black=2      Best:        	White=2     	Black=1      Strong:       	---       	Black=1} 1-0

[Event "EYCC O18-ch 2024"]
[Site "Prague"]
[Date "2024.08.28"]
[Round "6.9"]
[White "Eilenberg, Jonas"]
[Black "Nastore, Pavel-Alexandru"]
[Result "1-0"]
[ECO "E04"]
[WhiteElo "2285"]
[BlackElo "2233"]
[Annotator "RC"]
[PlyCount "67"]
[EventDate "2024.08.19"]
[EventType "swiss"]
[EventCountry "CZE"]
[SourceTitle "playchess.com"]
[Source "ChessBase"]
[SourceQuality "1"]
[TimeControl "5400+30"]

1. d4 {[%emt 0:00:05]} d5 {[%emt 0:00:13]} 2. c4 {[%emt 0:00:09]} e6 {[%emt 0:00:04]} 3. Nf3 {[%emt 0:00:06]} Nf6 {[%emt 0:00:14]} 4. g3 {[%emt 0:00:05]} dxc4 {[%emt 0:03:29]} 5. Bg2 {[%emt 0:00:07]} a6 {[%emt 0:00:27]} 6. Ne5 {[%emt 0:00:05]} Nc6 {[%emt 0:12:58]} 7. Nxc6 {[%emt 0:00:10]} bxc6 {[%emt 0:00:03]} 8. Bxc6+ {[%emt 0:00:09]} Bd7 {[%emt 0:00:01]} 9. Bxa8 {[%emt 0:00:10]} Qxa8 {[%emt 0:00:02]} 10. O-O {[%emt 0:00:11]} h5 {[%emt 0:00:02]} 11. f3 {[%emt 0:04:03]} h4 {[%emt 0:11:06]} 12. g4 {[%emt 0:15:37]} Be7 {[%emt 0:20:16]} 13. e4 {[%emt 0:03:23]} c5 {[%emt 0:06:00]} 14. Be3 {[%emt 0:02:30]} cxd4 {[%emt 0:00:22]} 15. Qxd4 {[%emt 0:03:48]} Qb8 {[%emt 0:02:15]} 16. Rd1 {[%emt 0:03:39]} e5 {[%emt 0:02:58]} 17. Qb6 {[%emt 0:02:21]} Qc8 {[%emt 0:00:50]} 18. g5 {[%emt 0:08:52]} Nh7 {[%emt 0:05:59]} 19. g6 {[%emt 0:21:20]} Ng5 {[%emt 0:00:09]} 20. gxf7+ {[%emt 0:01:50]} Kxf7 {[%emt 0:08:07]} 21. Kh1 {[%emt 0:03:28]} Ba4 {[%emt 0:15:59]} 22. Rf1 {[%emt 0:12:11]} Bc2 {[%emt 0:06:58]} 23. Nd2 {[%emt 0:01:44]} Ne6 {[%emt 0:00:26]} 24. Qa5 {[%emt 0:02:10]} Bd3 {[%emt 0:01:38]} 25. Rf2 {[%emt 0:01:45]} Qb8 {[%emt 0:01:06]} 26. Rc1 {[%emt 0:01:43]} Qb5 {[%emt 0:01:16]} 27. Qxb5 {[%emt 0:01:25]} axb5 {[%emt 0:00:03]} 28. a4 {[%emt 0:00:07]} Nd4 {[%emt 0:00:51]} 29. axb5 {[%emt 0:00:30]} Rc8 {[%emt 0:00:14]} 30. b6 {[%emt 0:00:40]} Nc2 {[%emt 0:00:06]} 31. b7 {[%emt 0:00:19]} Rb8 {[%emt 0:00:05]} 32. Nxc4 {[%emt 0:00:15]} Nxe3 {[%emt 0:00:11]} 33. Nxe5+ {[%emt 0:00:09]} Ke6 {[%emt 0:00:08]} 34. Nxd3 {[%emt 0:00:08]} 1-0